[Event "FIDE Candidates 2024"]
[Site "Toronto"]
[Date "2024.04.05"]
[Round "3.3"]
[White "Firouzja, Alireza"]
[Black "Caruana, Fabiano"]
[Result "1/2-1/2"]
[ECO "B30"]
[WhiteElo "2760"]
[BlackElo "2803"]
[Annotator "TA"]
[PlyCount "76"]
[EventDate "2024.04.02"]
[EventType "tourn"]
[EventCountry "CAN"]
[SourceTitle "playchess.com"]
[Source "ChessBase"]
[SourceQuality "1"]
[TimeControl "40/7200:1800+30"]

{[%evp 11,76,26,25,13,33,0,5,8,52,27,40,46,34,41,45,39,54,37,42,33,52,4,0,0,0,0,0,0,30,29,31,32,30,28,33,43,37,42,45,46,46,45,53,54,52,66,58,40,43,31,35,34,41,31,36,21,22,0,29,0,0,0,28,0,0,0,25]} 1. e4 {[%emt 0:00:03][%cal Be2e4,Be4e5][%mdl 32]} c5 {[%emt 0:00:08]} 2. Nf3 {[%emt 0:00:06]} Nc6 {[%emt 0:00:03]} 3. Bb5 {[%emt 0:00:17]} Nf6 {[%emt 0:00:08][%cal Bg8f6,Bf6d5,Bd5c7,Bc7e6][%mdl 32]} 4. Nc3 {[%emt 0:01:26]} Nd4 {[%emt 0:00:29]} 5. e5 {[%emt 0:07:52]} Nxb5 {[%emt 0:00:14]} 6. Nxb5 {[%emt 0:00:05]} Nd5 {[%emt 0:00:04]} 7. c4 {[%emt 0:00:34]} Nc7 {[%emt 0:00:06]} 8. Nc3 {[%emt 0:07:25]} d5 {[%emt 0:14:54]} 9. exd6 {[%emt 0:32:24]} exd6 {[%emt 0:00:06]} 10. d4 {[%emt 0:00:33]} Be7 {[%emt 0:01:31]} 11. O-O {[%emt 0:01:19]} O-O {[%emt 0:00:00]} 12. Bf4 {[%emt 0:04:59]} Ne6 {[%emt 0:16:42]} 13. Be3 {[%emt 0:02:06]} Nc7 {[%emt 0:06:31]} 14. h3 {[%emt 0:05:48]} Bf5 {[%emt 0:11:11]} 15. Re1 {[%emt 0:01:32][%cal Bf1e1,Be1e5,Be5b5,Bb5b7][%mdl 32]} Re8 {[%emt 0:02:13]} 16. Qd2 {[%emt 0:03:22]} (16. dxc5 $14 {feels stronger.} dxc5 17. Qb3) 16... d5 $1 $11 {[%emt 0:16:03]} 17. cxd5 {[%emt 0:11:47]} c4 {[%emt 0:00:50]} 18. Bf4 {[%emt 0:00:45]} Nxd5 {[%emt 0:00:38]} 19. Re5 {[%emt 0:00:10][%csl LRd5,LRf5]} Nxc3 {[%emt 0:13:25]} 20. Qxc3 {[%emt 0:05:10]} Qd7 {[%emt 0:08:10]} 21. Qxc4 {[%emt 0:01:08]} Rac8 {[%emt 0:02:58]} 22. Qb5 {[%emt 0:03:41]} Qxb5 {[%emt 0:02:23]} 23. Rxb5 {[%emt 0:00:06]} Be4 {[%emt 0:00:03][%cal Bf5e4,Be4d5,Bd5e6][%mdl 32]} 24. d5 {[%emt 0:01:34]} a6 {[%emt 0:01:40]} 25. Rxb7 {[%emt 0:00:28]} Bxd5 {[%emt 0:00:04] This pair of bishops is nice.} 26. Rd7 {[%emt 0:03:20]} Be6 {[%emt 0:03:45]} 27. Ra7 {[%emt 0:00:50]} Ra8 {[%emt 0:03:48]} 28. Rxa8 {[%emt 0:02:09]} Rxa8 {[%emt 0:00:03]} 29. a3 {[%emt 0:05:19]} h6 {[%emt 0:01:12]} 30. Re1 {[%emt 0:01:33]} Rd8 {[%emt 0:00:40] Wards off Nd4} 31. Be5 {[%emt 0:00:06]} Rd5 {[%emt 0:01:35]} 32. Bc3 {[%emt 0:00:23]} Bc5 {[%emt 0:00:21] Prevents Nd4} 33. Ne5 {[%emt 0:00:35]} Kh7 {[%emt 0:00:53]} 34. Nf3 {[%emt 0:02:50]} Bd7 {[%emt 0:00:44]} 35. Re5 {[%emt 0:01:36]} Rd1+ {[%emt 0:00:19]} 36. Re1 {[%emt 0:00:06]} Rd5 {[%emt 0:00:03]} 37. Re5 {[%emt 0:00:08]} Rd1+ {[%emt 0:00:04]} 38. Re1 {[%emt 0:00:06]} Rd5 {[%emt 0:00:51] Weighted Error Value: White=0.08 (flawless) /Black=0.04 (flawless) .  Mistake:       	White=1     	---        Inaccurate:     	White=1     	Black=3      OK:         	White=17    	Black=19     Best:        	---       	Black=1      Strong:       	---       	Black=1} 1/2-1/2

[Event "FIDE Candidates 2024"]
[Site "Toronto"]
[Date "2024.04.07"]
[Round "4.1"]
[White "Nakamura, Hikaru"]
[Black "Praggnanandhaa R"]
[Result "1/2-1/2"]
[ECO "C78"]
[WhiteElo "2789"]
[BlackElo "2747"]
[Annotator "TA"]
[PlyCount "47"]
[EventDate "2024.04.02"]
[EventType "tourn"]
[EventCountry "CAN"]
[SourceTitle "playchess.com"]
[Source "ChessBase"]
[SourceQuality "1"]
[TimeControl "40/7200:1800+30"]

{[%evp 13,47,0,31,37,32,0,0,0,0,0,0,0,0,-5,0,0,12,-12,-11,-35,-19,-20,-14,-12,-16,-19,-12,-9,-18,-25,0,-7,0,-18,0,-18]} 1. e4 {[%emt 0:00:05]} e5 {[%emt 0:00:39]} 2. Nf3 {[%emt 0:00:11]} Nc6 {[%emt 0:00:10]} 3. Bb5 {[%emt 0:00:27]} a6 {[%emt 0:00:15]} 4. Ba4 {[%emt 0:00:13]} Nf6 {[%emt 0:00:12]} 5. d3 {[%emt 0:00:16]} Bc5 {[%emt 0:00:43]} 6. O-O {[%emt 0:00:12]} b5 {[%emt 0:01:31]} 7. Bb3 {[%emt 0:00:05]} h6 {[%emt 0:03:46]} 8. a4 {[%emt 0:03:40] axb5 would now be deadly.} Rb8 {[%emt 0:01:52]} 9. Be3 {[%emt 0:00:19]} Bxe3 {[%emt 0:08:49]} 10. fxe3 {[%emt 0:00:21]} d6 {[%emt 0:00:29]} 11. axb5 {[%emt 0:01:23]} axb5 {[%emt 0:00:08]} 12. Qe1 {[%emt 0:01:20]} O-O {[%emt 0:06:27]} 13. h3 {[%emt 0:02:29]} Ne7 {[%emt 0:10:01]} 14. Nc3 {[%emt 0:09:02]} Be6 {[%emt 0:05:55]} 15. Nd2 {[%emt 0:25:35]} Qd7 {[%emt 0:08:24]} 16. Ne2 {[%emt 0:00:00][%cal Of1f6]} Ra8 {[%emt 0:04:17]} 17. Bxe6 {[%emt 0:07:50]} fxe6 {[%emt 0:06:17]} 18. Rxa8 {[%emt 0:08:09]} Rxa8 {[%emt 0:00:12]} 19. Ng3 {[%emt 0:01:36]} Ng6 {[%emt 0:03:50]} 20. Qd1 {[%emt 0:04:22]} Ra2 {[%emt 0:10:33]} 21. Qb1 {[%emt 0:01:30]} Ra8 {[%emt 0:00:00]} 22. Qd1 {[%emt 0:00:45] The position is equal.} Ra2 {[%emt 0:10:28]} 23. Qb1 {[%emt 0:12:51]} Ra8 {[%emt 0:00:00]} 24. Qd1 {[%emt 0:04:13] Weighted Error Value: White=0.06 (flawless) /Black=0.08 (flawless) .  Inaccurate:     	White=1     	---        OK:         	White=7     	Black=3} 1/2-1/2

[Event "FIDE Candidates 2024"]
[Site "Toronto"]
[Date "2024.04.07"]
[Round "4.2"]
[White "Nepomniachtchi, Ian"]
[Black "Vidit, Santosh Gujrathi"]
[Result "1-0"]
[ECO "C67"]
[WhiteElo "2758"]
[BlackElo "2727"]
[Annotator "TA"]
[PlyCount "87"]
[EventDate "2024.04.02"]
[EventType "tourn"]
[EventCountry "CAN"]
[SourceTitle "playchess.com"]
[Source "ChessBase"]
[SourceQuality "1"]
[TimeControl "40/7200:1800+30"]

{[%evp 19,87,0,0,0,0,-16,-23,-27,-20,-18,-27,-31,-10,-32,0,-10,0,0,0,-6,0,0,0,-8,0,-21,0,0,-13,-14,0,-25,0,-26,54,29,43,43,91,77,92,107,112,89,79,87,87,88,91,73,64,76,75,62,137,129,537,534,538,538,29963,29959,29960,9973,29967,29968,29969,29971,29987,29988]} 1. e4 {[%emt 0:00:06]} e5 {[%emt 0:00:56]} 2. Nf3 {[%emt 0:00:07]} Nc6 {[%emt 0:00:10]} 3. Bb5 {[%emt 0:00:18]} Nf6 {[%emt 0:00:18]} 4. O-O {[%emt 0:00:43]} Nxe4 {[%emt 0:00:14]} 5. d4 {[%emt 0:00:12]} Nd6 {[%emt 0:00:16]} 6. Bxc6 {[%emt 0:00:23]} dxc6 {[%emt 0:00:08]} 7. dxe5 {[%emt 0:00:06]} Nf5 {[%emt 0:00:13]} 8. Qxd8+ {[%emt 0:00:16]} Kxd8 {[%emt 0:00:03]} 9. Nc3 {[%emt 0:00:08]} Bd7 {[%emt 0:01:34]} 10. h3 {[%emt 0:00:11]} h6 {[%emt 0:01:12]} 11. g4 {[%emt 0:00:12][%cal Of1d1] Rd1! is the strong threat.} Ne7 {[%emt 0:00:46]} 12. Nh2 {[%emt 0:00:05]} g5 {[%emt 0:35:11]} 13. f4 {[%emt 0:00:57] Black has an edge.} gxf4 {[%emt 0:01:03]} 14. Bxf4 {[%emt 0:00:07]} Be6 {[%emt 0:11:26]} 15. Ne4 {[%emt 0:01:06]} b6 {[%emt 0:02:30]} 16. Nf3 {[%emt 0:05:09]} c5 {[%emt 0:00:50]} 17. Nf6 {[%emt 0:15:21]} Kc8 {[%emt 0:02:03]} 18. Kg2 {[%emt 0:00:13]} Kb7 {[%emt 0:01:18]} 19. Kg3 {[%emt 0:01:05]} a5 {[%emt 0:13:01]} 20. a3 {[%emt 0:01:30]} a4 {[%emt 0:05:29]} 21. Rad1 {[%emt 0:02:54]} Nc6 {[%emt 0:02:40]} (21... Kc6 {looks sharper.} 22. Rd2 Ng6 23. h4 Kb7) 22. c3 {[%emt 0:03:41]} Be7 {[%emt 0:04:51]} 23. Nh4 {[%emt 0:06:14]} h5 {[%emt 0:01:40]} 24. g5 {[%emt 0:02:52]} Ra5 {[%emt 0:08:12]} 25. Rde1 {[%emt 0:05:04]} (25. g6 fxg6 26. Rfe1 (26. Nxg6 $2 Bxf6 27. exf6 Rg8 $19) 26... Raa8 $17) 25... Rb5 {[%emt 0:01:33]} 26. Bc1 {[%emt 0:01:06]} Rb3 {[%emt 0:04:07]} ({Black should play} 26... c4 $11 27. g6 Nxe5) 27. g6 $14 {[%emt 0:03:12]} fxg6 {[%emt 0:00:32]} 28. Nxg6 {[%emt 0:00:15] A dynamic duo of knights.} Rd8 {[%emt 0:01:16]} (28... h4+ $1 $14 29. Kh2 Rd8) 29. Nxe7 $16 {[%emt 0:09:45]} Nxe7 {[%emt 0:05:15]} 30. Nxh5 {[%emt 0:00:58]} Rd3+ {[%emt 0:01:40]} 31. Rf3 {[%emt 0:01:06]} Rxf3+ {[%emt 0:00:03]} 32. Kxf3 {[%emt 0:00:03]} Bxh3 {[%emt 0:00:04]} 33. e6 {[%emt 0:00:09][%cal Be5e6,Be6e7][%mdl 32]} b5 {[%emt 0:00:40]} 34. Bg5 {[%emt 0:01:26]} Nd5 {[%emt 0:02:06]} 35. e7 {[%emt 0:06:08]} Bd7 {[%emt 0:00:01]} 36. Rd1 {[%emt 0:12:19]} ({Reject} 36. e8=R Bxe8 37. Rxe8 Rxb2 $11) 36... Kc6 {[%emt 0:02:00]} (36... Be8 $14 37. Ng7 Bc6) 37. Ke4 {[%emt 0:01:54] White is more active.} Be8 $2 {[%emt 0:02:22][%mdl 8192] This move loses the game for Black.} (37... Nxe7 $16 38. Bxe7 Bg4) 38. Rxd5 $18 {[%emt 0:06:13]} Bxh5 {[%emt 0:00:12][%mdl 4096] Endgame. [#] KRB-KRB} 39. Bc1 {[%emt 0:03:18]} Bg6+ {[%emt 0:00:38]} 40. Ke5 {[%emt 0:00:00]} b4 {[%emt 0:00:00] [#]} 41. Kf6 $1 {[%emt 0:01:15]} Be8 {[%emt 0:10:52]} (41... Kxd5 42. Kxg6) 42. Rd8 {[%emt 0:00:11] White mates.} bxa3 {[%emt 0:02:15]} 43. bxa3 {[%emt 0:07:15]} Bd7 {[%emt 0:06:14] [#]} 44. Kf7 $1 {[%emt 0:00:12] Weighted Error Value: White=0.06 (flawless) /Black=0.63.  Loses game:     	---       	Black=1      Mistake:       	---       	Black=3      Inaccurate:     	White=1     	Black=2      OK:         	White=11    	Black=9      Best:        	White=6     	Black=2} ({Weaker is} 44. e8=R Bxe8 45. Rxe8 Rxc3 $11) 1-0

[Event "FIDE Candidates 2024"]
[Site "Toronto"]
[Date "2024.04.09"]
[Round "5.1"]
[White "Praggnanandhaa R"]
[Black "Nepomniachtchi, Ian"]
[Result "1/2-1/2"]
[ECO "C42"]
[WhiteElo "2747"]
[BlackElo "2758"]
[Annotator "TA"]
[PlyCount "88"]
[EventDate "2024.04.02"]
[EventType "tourn"]
[EventCountry "CAN"]
[SourceTitle "playchess.com"]
[Source "ChessBase"]
[SourceQuality "1"]
[TimeControl "40/7200:1800+30"]

{[%evp 21,88,10,31,22,21,22,30,30,26,20,30,0,0,0,0,0,0,0,0,-25,5,8,8,0,8,0,127,127,139,143,143,61,52,60,64,21,38,33,37,35,39,31,38,0,35,39,28,27,39,8,8,8,4,1,2,2,8,0,8,4,8,2,8,8,1,8,8,0,0]} 1. e4 {[%emt 0:00:36]} e5 {[%emt 0:00:07]} 2. Nf3 {[%emt 0:00:06]} Nf6 {[%emt 0:00:06]} 3. Nxe5 {[%emt 0:00:34]} d6 {[%emt 0:00:06]} 4. Nf3 {[%emt 0:00:07]} Nxe4 {[%emt 0:00:08]} 5. d4 {[%emt 0:00:07]} d5 {[%emt 0:00:27]} 6. Bd3 {[%emt 0:00:12]} Bd6 {[%emt 0:00:08]} 7. O-O {[%emt 0:00:17]} O-O {[%emt 0:00:07]} 8. c4 {[%emt 0:00:05]} c6 {[%emt 0:00:05]} 9. Nc3 {[%emt 0:00:50]} Nxc3 {[%emt 0:00:53]} 10. bxc3 {[%emt 0:00:07]} dxc4 {[%emt 0:00:04]} 11. Bxc4 {[%emt 0:00:05]} Bf5 {[%emt 0:00:23]} 12. Bg5 {[%emt 0:00:45]} Qa5 {[%emt 0:00:32]} 13. Nh4 {[%emt 0:00:12]} (13. d5 {simplifies} Qc7 14. Re1 Bg6 15. h3) 13... Be6 {[%emt 0:01:08]} 14. Bxe6 {[%emt 0:00:06] Bf5 would now be deadly. White has an edge.} Qxg5 {[%emt 0:00:10]} 15. Nf3 {[%emt 0:00:04]} Qa5 {[%emt 0:01:09]} 16. Bh3 {[%emt 0:00:12]} Qxc3 {[%emt 0:00:25]} 17. Rb1 {[%emt 0:00:13][%cal Ba1b1,Bb1b3,Bb3d3,Bd3d5][%mdl 32]} b6 {[%emt 0:01:22]} 18. Rb3 {[%emt 0:00:57]} Qa5 {[%emt 0:00:27][%cal Ob8a6]} 19. d5 {[%emt 0:00:05]} cxd5 {[%emt 0:40:03][%cal Ob8a6]} (19... Qxd5 $2 20. Rd3 Qxa2 21. Rxd6 $18) 20. Ng5 $1 {[%emt 0:00:29] Strongly threatening Qh5.} h6 {[%emt 0:08:48] [#]} (20... Qxa2 $2 21. Nxf7 Rxf7 22. Be6 $18) (20... g6 $5) 21. Nxf7 {[%emt 0:01:41]} Kxf7 {[%emt 0:01:33]} 22. Rd3 {[%emt 0:00:50]} Nd7 {[%emt 0:12:54]} 23. Rxd5 {[%emt 0:01:35]} (23. Bxd7 $5 Kg8 $8 24. Kh1 $11 (24. Rxd5 Bc5 $11)) 23... Nc5 {[%emt 0:01:54]} (23... Bxh2+ $1 $11 24. Kxh2 Nc5) 24. Rxd6 $16 {[%emt 0:07:04] White threatens Qd5+ and mate.} Kg8 {[%emt 0:02:35] [#]} 25. Qd5+ {[%emt 0:16:29]} Kh8 {[%emt 0:00:28] Black is weak on the light squares} 26. Bf5 {[%emt 0:12:31] White is more active.} (26. Qe5 $16 Qxa2 27. Rxh6+ Kg8 28. Rh5) 26... Nb7 $1 $14 {[%emt 0:09:00][%cal Bc5b7,Bb7a5,Ba5c4][%mdl 32]} 27. Qxa5 {[%emt 0:01:59]} Nxa5 {[%emt 0:00:35]} 28. g4 {[%emt 0:02:17]} Nc4 {[%emt 0:01:29]} 29. Rd5 {[%emt 0:08:36]} Rae8 {[%emt 0:07:46]} 30. h3 {[%emt 0:07:26]} Ne5 {[%emt 0:06:09]} 31. Kg2 {[%emt 0:02:03] Wards off Nf3} g6 {[%emt 0:00:14]} 32. Bc2 {[%emt 0:02:44]} g5 {[%emt 0:03:25]} 33. Bf5 {[%emt 0:14:25]} Re7 {[%emt 0:00:10]} 34. Rd6 {[%emt 0:03:21]} Kg7 {[%emt 0:00:22]} 35. Re1 {[%emt 0:00:12][%cal Oh3h4]} Rf6 {[%emt 0:02:00] The position is equal.} 36. Rd5 {[%emt 0:01:51]} Ng6 {[%emt 0:00:05]} 37. Rxe7+ {[%emt 0:00:05]} Nxe7 $11 {[%emt 0:00:02][%mdl 4096] Endgame. KRB-KRN} 38. Rd7 {[%emt 0:00:06][%csl LRa7,LRe7]} Kf8 {[%emt 0:00:03]} 39. Be4 {[%emt 0:01:10]} a5 {[%emt 0:01:35]} 40. Kg3 {[%emt 0:00:00]} Ng6 {[%emt 0:00:00]} 41. Bxg6 {[%emt 0:11:24]} Rxg6 {[%emt 0:01:53]} 42. h4 {[%emt 0:02:35]} Rc6 {[%emt 0:11:49]} 43. hxg5 {[%emt 0:02:50]} hxg5 {[%emt 0:00:10]} 44. Rb7 {[%emt 0:00:05]} a4 {[%emt 0:01:51] Weighted Error Value: White=0.08 (flawless) /Black=0.09 (flawless) .  Mistake:       	White=1     	Black=1      Inaccurate:     	White=4     	Black=2      OK:         	White=15    	Black=14     Best:        	White=2     	Black=2      Strong:       	White=1     	Black=1      Brilliant:      	White=1     	---} 1/2-1/2

[Event "FIDE Candidates 2024"]
[Site "Toronto"]
[Date "2024.04.09"]
[Round "5.2"]
[White "Firouzja, Alireza"]
[Black "Nakamura, Hikaru"]
[Result "0-1"]
[ECO "C54"]
[WhiteElo "2760"]
[BlackElo "2789"]
[Annotator "TA"]
[PlyCount "126"]
[EventDate "2024.04.02"]
[EventType "tourn"]
[EventCountry "CAN"]
[SourceTitle "playchess.com"]
[Source "ChessBase"]
[SourceQuality "1"]
[TimeControl "40/7200:1800+30"]

{[%evp 53,126,0,0,0,8,12,77,76,71,28,22,26,28,23,45,0,-13,-18,-12,-12,-12,-28,0,0,0,0,0,0,0,0,-8,0,0,-35,-31,-61,-66,-59,-62,-59,-66,-85,-73,-75,0,0,0,-10,-10,-23,-14,-13,0,-8,-8,-8,-8,-8,-8,-8,-8,-8,-8,-8,0,0,0,0,0,0,0,-12830,-6682,-5081,-1338]} 1. e4 {[%emt 0:00:04]} e5 {[%emt 0:00:19]} 2. Nf3 {[%emt 0:00:07]} Nc6 {[%emt 0:00:06]} 3. Bc4 {[%emt 0:00:05]} Nf6 {[%emt 0:00:05]} 4. d3 {[%emt 0:00:06]} Bc5 {[%emt 0:00:05]} 5. c3 {[%emt 0:00:07]} h6 {[%emt 0:00:16]} (5... d6 6. O-O O-O 7. Bg5 h6 8. Bh4 a6 9. a4 Ba7 10. Nbd2 g5 11. Bg3 Kg7 12. b4 Nh7 13. b5 Ne7 14. d4 f6 15. Re1 Ng6 16. Nf1 h5 17. h4 g4 {1-0 Firouzja,A (2777)-Nakamura,H (2787) Bullet Chess Winners blitz 2023 (4.4)}) 6. b4 {[%emt 0:00:46]} Be7 {[%emt 0:00:12] C54: Giuoco Piano: 4 c3 Nf6, main lines with 5 d4 and 5 d3.} 7. Qb3 {[%emt 0:00:40]} O-O {[%emt 0:00:11]} 8. a4 {[%emt 0:00:33]} d6 {[%emt 0:00:25]} 9. Nbd2 $146 {[%emt 0:03:22]} ({Predecessor:} 9. O-O Bg4 10. Nbd2 Qd7 11. Re1 Rad8 12. h3 Be6 13. Bd5 Nb8 14. d4 Bxd5 15. exd5 {½-½ Firouzja,A (2777)-Andreikin,D (2729) Chess.com Speed Chess blitz 2023 (1)}) 9... Nb8 {[%emt 0:08:03]} 10. d4 {[%emt 0:10:11]} exd4 {[%emt 0:23:51]} 11. cxd4 {[%emt 0:00:45]} a5 {[%emt 0:00:03]} 12. e5 {[%emt 0:26:34]} Nh5 {[%emt 0:07:04]} 13. b5 {[%emt 0:03:00]} Nf4 {[%emt 0:06:10]} 14. g3 {[%emt 0:02:40]} d5 {[%emt 0:02:47]} 15. Bf1 {[%emt 0:00:05]} Ne6 {[%emt 0:00:04]} 16. Bg2 {[%emt 0:07:47]} c6 {[%emt 0:02:15]} 17. O-O {[%emt 0:01:46]} Nd7 {[%emt 0:00:17]} 18. Bb2 {[%emt 0:06:58]} Nb6 {[%emt 0:01:08]} 19. bxc6 {[%emt 0:07:29]} bxc6 {[%emt 0:00:16]} 20. Bc3 {[%emt 0:00:22]} c5 {[%emt 0:22:06]} 21. Rfb1 {[%emt 0:07:23]} Ra6 {[%emt 0:00:36]} 22. dxc5 {[%emt 0:08:21]} Bxc5 {[%emt 0:04:15]} 23. Qb5 {[%emt 0:00:16]} Qc7 {[%emt 0:00:28]} 24. Rc1 {[%emt 0:05:08]} Qa7 {[%emt 0:04:05]} 25. Qe2 {[%emt 0:00:46]} Bd7 {[%emt 0:07:49]} 26. Bf1 {[%emt 0:00:41]} Nc4 {[%emt 0:00:06]} 27. Nb3 {[%emt 0:05:46]} Bb6 {[%emt 0:05:21]} 28. Rd1 {[%emt 0:00:19]} Qa8 {[%emt 0:00:06]} 29. Bg2 {[%emt 0:01:14]} Nc5 {[%emt 0:01:26]} (29... Ra7 $11) 30. Nxc5 $16 {[%emt 0:02:38]} Bxc5 {[%emt 0:01:12]} 31. Nh4 {[%emt 0:06:02]} Nb6 {[%emt 0:02:16]} 32. Bd4 {[%emt 0:00:00]} (32. Qd3 {is interesting.} Rc8 33. Ra2 Bg4 34. Bf3) 32... Bxd4 {[%emt 0:00:44]} 33. Rxd4 {[%emt 0:00:00]} Ra7 {[%emt 0:00:06]} 34. h3 {[%emt 0:01:21]} (34. Rb1 $14 Qc6 35. Qe3) 34... Rc7 $11 {[%emt 0:00:13]} 35. g4 {[%emt 0:00:39]} Qc8 {[%emt 0:05:15]} 36. Qd2 {[%emt 0:00:36]} Rc5 {[%emt 0:00:06]} 37. Qf4 {[%emt 0:03:19]} Re8 {[%emt 0:07:11]} (37... g5 $5 38. Qf6 $8 Qd8 39. Qxd8 Rxd8 $15) 38. Nf5 {[%emt 0:00:20]} Bxf5 {[%emt 0:00:22]} 39. gxf5 {[%emt 0:00:02]} Qc7 {[%emt 0:00:08]} 40. Re1 {[%emt 0:00:00]} Nd7 {[%emt 0:00:00]} 41. e6 {[%emt 0:08:02]} Qxf4 {[%emt 0:04:24]} 42. Rxf4 {[%emt 0:00:06]} Nf6 {[%emt 0:00:07]} 43. Rd4 {[%emt 0:05:42]} Kf8 {[%emt 0:07:00]} 44. Rd2 {[%emt 0:03:54]} fxe6 {[%emt 0:00:00]} 45. fxe6 {[%emt 0:00:06]} Ke7 {[%emt 0:00:00]} 46. Rb2 {[%emt 0:00:25]} Rec8 $1 {[%emt 0:00:00]} 47. Bf1 {[%emt 0:03:17]} Ne4 {[%emt 0:00:40]} 48. Bd3 {[%emt 0:06:33]} Nc3 {[%emt 0:08:05]} ({Of course not} 48... Kxe6 49. Bxe4 dxe4 50. Rxe4+ Kf6 51. Rg4 $11) (48... Rc1 $17 49. Rb7+ Kxe6) 49. f4 $11 {[%emt 0:01:20]} d4 {[%emt 0:06:57]} 50. Rg2 {[%emt 0:03:56]} g5 {[%emt 0:00:23]} 51. f5 {[%emt 0:00:09]} Nd5 {[%emt 0:04:25]} 52. Re4 {[%emt 0:00:05]} Nb4 {[%emt 0:04:36]} 53. f6+ {[%emt 0:02:55]} Kxf6 {[%emt 0:00:07]} 54. Rf2+ {[%emt 0:00:26]} Rf5 $1 {[%emt 0:00:04]} 55. Rxf5+ {[%emt 0:00:11]} Kxf5 {[%emt 0:00:02]} 56. e7 $1 {[%emt 0:00:06]} Nxd3 {[%emt 0:00:14]} 57. e8=Q {[%emt 0:00:06]} Rxe8 {[%emt 0:00:03]} 58. Rxe8 {[%emt 0:00:04]} Nf4 {[%emt 0:02:31]} 59. Kf1 {[%emt 0:01:52]} d3 {[%emt 0:00:05]} ({Don't play} 59... Nxh3 60. Ra8 Nf4 61. Rxa5+ Ke4 62. Ra8 $16) 60. Kf2 {[%emt 0:01:48]} Nxh3+ {[%emt 0:00:08]} 61. Ke3 $1 {[%emt 0:00:03]} g4 {[%emt 0:00:08]} 62. Kxd3 $2 {[%emt 0:01:35][%mdl 8192]} (62. Rd8 $11) 62... g3 $19 {[%emt 0:00:14]} 63. Rf8+ {[%emt 0:00:23]} Ke6 {[%emt 0:00:45]} 0-1